{"text_format":"1","workbook":"xlsx","n_sheets":3,"sheets":["Hinweise","Plan","Änderungen"],"not_rendered":{"charts":0,"images":4,"macros":1,"external_links":0,"defined_names":87,"comments":1,"pivot_tables":0},"unopened":[],"bounds":{"document_bytes":16777216,"sheet_cells":100000,"rows_first":2000,"rows_last":500,"rows_between":2000,"halvings":0,"cell_chars":16384,"cell_head_chars":4096},"cells_cut":0,"cells_raw":0,"read":"whole","date_system":"1900"}

{"sheet":"Hinweise","index":0,"n_rows":38,"n_cols":1,"rows_kept":38,"cut":false,"hidden":false,"merged":[]}
[]
[]
[]
[]
["Berechnung der voraussichtlichen Direktzahlungen entsprechend der europäischen Agrarpolitik nach 2023"]
[" - Basis-, Umverteilungsprämie"]
[" - Junglandwirteprämie"]
[" - gekoppelte Tierprämien"]
[" - Prämien für Ökoregelungen (eco-schemes)"]
[" - Prämien für Agrar-, Umwelt- und Klimamaßnahmen des Landes Mecklenburg-Vorpommern"]
[]
[{"$f":"IFERROR(\"Bearbeitungsstand: \"&TEXT(MAX(Änderungen!A5:A44),\"TT.MM.JJJJ\"),\"\")","v":"Bearbeitungsstand: 21.03.2024"}]
[]
["Quellen"]
["GAP-Konditionalitätengesetz"]
["GAP-Direktzahlungen-Gesetz"]
["GAP-Direktzahlungen-Verordnung"]
["Förderprogramme des Ministeriums für Klimaschutz, Landwirtschaft, ländliche Räume und Umwelt MV"]
[]
["Ansprechpartner"]
["Thomas Annen"]
["t.annen@lfa.mvnet.de"]
["0385 588-60251"]
[]
["Matthias Dietze"]
["m.dietze@lfa.mvnet.de"]
["0385 588-60250"]
[]
["Bedienungshinweis"]
["- öffnen Sie die Tabelle mit Microsoft Excel ab 2007\n- bestätigen Sie \"Inhalte aktivieren\", \"Makros aktivieren\",\n- Geben Sie zunächst einige Angaben zum Betrieb ein (Flächenausstattung)\n- Planen Sie ggf. den Anbau auf Ackerland und die Tierhaltung\n- Wählen Sie die Ökoregelungen, an denen Sie möglicherweise teilnehmen möchten\n  (bei einigen Programmen ergibt sich aus den Angaben, ob die Voraussetzungen erfüllt sind, \n   dann ist nur der gewünschte Umfang einzugeben,\n   bei anderen muss die Teilnahme durch Benutzereingabe \"wahr\" bestätigt werden (Zellen mit weißem Hintergrund)\n   und danach der Umfang angegeben werden\n- wählen Sie die AUKM, an denen Sie möglicherweise teilnehmen möchten\n- lesen Sie die voraussichtlichen Folgen für die Direktzahlungen anhand der Tabelle ab"]
["Die Tabelle ist gegen versehentliches Bearbeiten der berechneten Zellen geschützt, der Blattschutz sollte daher nicht aufgehoben werden. Während der Dateneingabe werden (sofern die Makros beim Öffnen der Datei aktiviert wurden) nicht benötigte Zeilen ausgeblendet, um so die Übersichtlichkeit zu verbessern. Bei Bedarf lassen sich Zeilen auch wieder einblenden, hierzu muss nur der entsprechende Eintrag im Feld \"Hilfsprogramme zum ein-/ausblenden von Zeilen\" gewählt werden."]
["Bei einigen Ökoregelungen und Agrarumwelt-und Klimamaßnahmen gelten Unter- sowie Obergrenzen. Falls diese über- oder unterschritten werden, korrigiert ein Programm dies automatisch."]
[]
["Haftungsausschluss"]
["Die Kalkulation beruht z. T. auf nicht endgültigen Richtlinien- und Verordnungsentwürfen, die Werte und Bedingungen können sich noch geringfügig ändern.\nDie meisten Prämien werden in den Verordnungen als vorläufig bezeichnet, die endgültige Höhe kann in geringem Umfang nach unten oder oben abweichen. \nDie berechneten Ergebnisse stellen Orientierungswerte dar und besitzen keine Rechtsverbindlichkeit.\nEin Haftungsanspruch gegenüber der LFA MV wird ausgeschlossen."]
["Die Tabelle ist gegen unbeabsichtigte Bearbeitung geschützt."]
["Die Datei enthält Programmtext, sogenannte Makros.\nDie Makros haben folgende Funktionen: \nAutomatisch:\n- nicht benötigte Zeilen ausblenden,\n- vom Benutzer eingegebene Planungswerte korrigieren, \n  wenn sie ein vorgeschriebenes Minimum unterschreiten oder ein Maximum überschreiten, \nNach Auswahl:\n- ausgeblendete Zeilen wieder einblenden\n- alle eingegebenen Werte löschen\n"]
["Beides dient der Benutzerfreundlichkeit, der Blattschutz sollte daher nicht aufgehoben werden und die Makros sollten beim Öffnen aktiviert werden."]

{"sheet":"Plan","index":1,"n_rows":410,"n_cols":13,"rows_kept":410,"cut":false,"hidden":false,"merged":[[153,0,153,5],[154,0,154,5],[94,3,94,5],[110,3,110,5],[152,0,152,5],[141,0,141,5],[142,0,142,5],[143,0,143,5],[147,0,147,5],[149,0,149,5],[150,0,150,5],[151,0,151,5],[96,2,105,5]]}
["Hauptkulturen","Code","Hauptnutzungsart","Sommer/Winterung","Legum","Kulturart","KulturartEU",0]
[null,null,null,null,null,"",null,0]
["Winterweizen",null,"A","W",null,"Getreide",null,0]
["Sommerweizen",null,"A","S",null,"Getreide",null,0]
["Wintergerste",null,"A","W",null,"Getreide",null,0]
["Sommergerste",null,"A","S",null,"Getreide",null,0]
["Roggen und Wintermenggetreide",null,"A","W",null,"Getreide",null,0]
["Triticale",null,"A","W",null,"Getreide",null,0]
["Hafer",null,"A","S",null,"Getreide",null,0]
["Sommermenggetreide",null,"A","S",null,"Getreide",null,0]
["Körnermais/Mais zum Ausreifen (einschl. CCM)",null,"A","S",null,"Getreide",null,0]
["Erbsen (ohne Frischerbsen)",null,"A","S","gK","Hülsenfrüchte",null,0]
["Süßlupinen",null,"A","S","gK","Hülsenfrüchte",null,0]
["Ackerbohnen",null,"A","S","gK","Hülsenfrüchte",null,0]
["Soja",null,"A","S","gK","Hülsenfrüchte"]
["andere, großkörnige Hülsenfrüchte",null,"A","S","gK","Hülsenfrüchte",null,0]
["Winterraps",null,"A","W",null,"Ölfrüchte",null,0]
["Sommerraps, Winter- und Sommerrübsen",null,"A","S",null,"Ölfrüchte",null,0]
["Öllein (Leinsamen)",null,"A","S",null,"Ölfrüchte",null,0]
["Sonnenblumen",null,"A","S",null,"Ölfrüchte",null,0]
["andere Ölfrüchte",null,"A",null,null,"Ölfrüchte",null,0]
["Zuckerrüben",null,"A","S",null,"Hackfruchte",null,0]
["Kartoffeln",null,"A","S",null,"Hackfrüchte",null,0]
["andere Hackfrüchte",null,"A","S",null,"Hackfrüchte",null,0]
["Gemüse",null,"A","S",null,"Gemüse",null,0]
["Handelsgewächse",null,"A",null,null,"andere",null,0]
["Silomais/Grünmais",null,"A","S",null,"Ackerfutter",null,0]
["Grasanbau auf dem Ackerland",null,"A",null,null,"Ackerfutter",null,0]
["kleinkörnige Leguminosen",null,"A",null,"kK","Ackerfutter",null,0]
["Feldgras/ Getreide zur Ganzpflanzenernte",null,"A",null,null,"Ackerfutter",null,0]
["Unproduktive Ackerfläche",null,null,null,null,"Unproduktive AF",null,0]
["Agroforst",null,"A",null,null,"andere",null,0]
[null,null,null,null,null,null,null,0]
[null,null,null,null,null,null,null,0]
[null,null,null,null,null,null,null,0]
[null,null,null,null,null,null,null,0]
["Betriebsprämien",null,2023,2024,2025,2026,2027,0]
["Basisprämie","Basisprämie",170.93,154.72,151.97,147.38,null,0]
["Greeningprämie","Greeningprämie",null,null,null,null,null,0]
["UVP 1 (bis 30, 40)","UVP 1 (bis 30, 40)",76.28,68.39,67.23,65.31,null,0]
["UVP 2 (bis 46, 60)","UVP 2 (bis 46, 60)",45.76,41.03,40.340000000000003,39.19,null,0]
["Junglandwirteprämie (bis 120)","Junglandwirteprämie (bis 120)",141.75,134,134,134,null,0]
["Mutterkühe","Mutterkuhprämie",85.72,77.06,75.760000000000005,73.599999999999994,null,0]
["Schafe","Schafprämie",38.31,34.44,33.86,32.89,null,0]
["Ziegen","Ziegenprämie",{"$f":"C44","v":38.31},34.44,33.86,32.89,null,0]
["Prämien für Ökoregelungen",null,2023,2024,2025,2026,2027,0]
["1. Verbesserung der Biodiversität",null,null,null,null,null,null,0]
["Aufstockung nicht produktiver Fläche",null,null,null,null,null,null,0]
[0.01,"ÖR1a1",1690,1300,1300,1300,null,0]
[0.02,"ÖR1a2",650,500,500,500,null,0]
[0.06,"ÖR1a3",390,300,300,300,null,0]
["Blühflächen AL","ÖR1b",195,200,200,200,null,0]
["Blühflächen DK","ÖR1c",195,200,200,200,null,0]
["   Altgrasstreifen auf Dauergrünland","",null,null,null,null,null,0]
[0.01,"ÖR1d1",1170,900,900,900,null,0]
[0.03,"ÖR1d2",520,400,400,400,null,0]
[0.06,"ÖR1d3",260,200,200,200,null,0]
["2. Vielfältige Kulturen","ÖR2",58.5,60,60,60,null,0]
["3. Agroforst","ÖR3",78,200,200,200,null,0]
["4. Extensivierung DGL","ÖR4",149.5,100,100,100,null,0]
["5. Kennarten DGL","ÖR5",312,240,225,210,null,0]
["6. PSM-Verzicht ","",null,null,null,null,null,0]
["Sommerungen","ÖR6a",169,150,150,150,null,0]
["Gras, Grünfutter, Leguminosen","ÖR6b",65,50,50,50,null,0]
["7. Schutzgebietsbonus NATURA2000","ÖR7",52,40,40,40,null,0]
[]
[]
[]
[]
[]
[]
[]
[null,null,null,null,null,null,null,0]
[null,null,null,null,null,null,null,0]
["Kulturart","Fläche","Bez.","Anteil","Anzahl",null,null,0]
["Acker-Anbaufläche",{"$f":"SUMIFS($B$112:$B$132,$J$112:$J$132,\"A\")","v":0},"vHAnbau",{"$f":"IF(Ackerfläche>0,AFanbau/Ackerfläche,0)","v":0},{"$f":"COUNTIFS($J$112:$J$132,\"A\",$K$112:$K$132,\"<=30%\",$K$112:$K$132,\">=10%\")","v":0},null,null,0]
["Getreide",{"$f":"SUMIFS($B$112:$B$132,$I$112:$I$132,A77)","v":0},{"$f":"\"vH\"&A77","v":"vHGetreide"},{"$f":"IFERROR(B77/AFanbau,0)","v":0},null,null,null,0]
["Silomais",{"$f":"SUMIFS($B$112:$B$132,$A$112:$A$132,\"Silomais/Grünmais\")","v":0},"vHSilomais",0]
["Getreide mit Silomais",{"$f":"+Getreide+Silomais","v":0},"vHGetreide mit Silomais",0]
["großkörnige Leguminosen",{"$f":"SUMIFS($B$112:$B$132,$M$112:$M$132,\"gK\")","v":0},"vHgroßkörnige Leguminosen",0,null,null,null,0]
["Ölfrüchte",{"$f":"SUMIFS($B$112:$B$132,$I$112:$I$132,A81)","v":0},"vHÖlfrüchte",0,null,null,null,0]
["Hackfrüchte",{"$f":"SUMIFS($B$112:$B$132,$I$112:$I$132,A82)","v":0},"vHHackfrüchte",0,null,null,null,0]
["Gemüse",{"$f":"SUMIFS($B$112:$B$132,$I$112:$I$132,A83)","v":0},"vHGemüse",0,null,null,null,0]
["Ackerfutter",{"$f":"SUMIFS($B$112:$B$132,$I$112:$I$132,A84)","v":0},"vHAckerfutter",0,null,null,null,0]
["kleinkörnige Leguminosen",{"$f":"SUMIFS($B$112:$B$132,$M$112:$M$132,\"kK\")","v":0},"vHkleinkörnige Leguminosen",0]
["unter 10 %",{"$f":"SUMIFS($B$112:$B$132,$J$112:$J$132,\"A\",$K$112:$K$132,\"<10%\")","v":0},"vHunter 10 %",0,{"$f":"ROUNDDOWN(vHunter_10*10,0)","v":0}]
["unproduktive AF",{"$f":"SUMIFS($B$112:$B$132,$I$112:$I$132,A87)","v":0},"vHunproduktive AF",{"$f":"IFERROR(B87/Ackerfläche,0)","v":0},null,null,null,0]
["DGL",{"$f":"SUMIFS($B$112:$B$132,$J$112:$J$132,\"G\")","v":0},null,null,null,null,null,0]
["Unproduktive GF",{"$f":"SUMIFS($B$112:$B$132,$I$112:$I$132,A89)","v":0},"vHUnproduktive GF",{"$f":"IFERROR(B89/Dauergrünlandfläche,0)","v":0},null,null,null,0]
["DKF",{"$f":"SUMIFS($B$112:$B$132,$J$112:$J$132,\"DK\")","v":0},null,null,null,null,null,0]
["FFF",{"$f":"+AFanbau+DGL+B90","v":0},null,null,null,null,null,0]
["Mindeststilllegung",{"$f":"IF(Planjahr>2024,4%,IF(AND(Ackerfläche>10,(vHgroßkörnige_Leguminosen+vHkleinkörnige_Leguminosen)<4%,IFERROR(Zwischenfruchtanbau/Ackerfläche<4%,4%)),4%,0))","v":0},null,null,null,null,null,0]
[null,null,null,null,null,null,null,0]
[null,null,null,null,null,null,null,0]
["Betriebsdaten",null,null,"Hilfsprogramme zum ein-/ausblenden von Zeilen",null,null,null,1]
["Ackerfläche",null,{"$f":"IFERROR(IF(ROUNDDOWN(Ackerfläche,0)>=ROUNDDOWN(AFPlan,0),\"\",\"Fläche im Anbauplan ist um \"&TEXT((AFPlan-Ackerfläche),\"0\")&\" ha größer als die hier genannte \"&A96),\"\")&\nIFERROR(IF(ROUNDUP(Ackerfläche,0)<=ROUNDDOWN(AFPlan,0),\"\",\"Für \"&TEXT(Ackerfläche-AFPlan,\"0\")&\" ha Ackerfläche ist noch keine Nutzung geplant!\"),\"\")","v":""},null,null,null,null,{"$f":"IF(ISBLANK(B96),1,IF(B96>0,1,0))","v":1}]
["Dauergrünlandfläche",null,null,null,null,null,null,{"$f":"IF(ISBLANK(B97),1,IF(B97>0,1,0))","v":1}]
["Zwischenfruchtanbau (für GLÖZ 8)",null,null,null,null,null,null,{"$f":"Planjahr<2025","v":true}]
["Dauerkulturfläche",null,null,null,null,null,null,{"$f":"IF(ISBLANK(B99),1,IF(B99>0,1,0))","v":1}]
["Landwirtschaftliche Fläche",{"$f":"IF(SUM(B96,Dauergrünlandfläche,B99)<1,0,SUM(B96,Dauergrünlandfläche,B99))","v":0},null,null,null,null,null,1]
["Gartenbaufläche",null,null,null,null,null,null,{"$f":"IF(ISBLANK(B101),1,IF(B101>0,1,0))","v":1}]
["Unter-Glas-Fläche",null,null,null,null,null,null,{"$f":"IF(ISBLANK(B102),1,IF(B102>0,1,0))","v":1}]
["Forstfläche",null,null,null,null,null,null,{"$f":"IF(ISBLANK(B103),1,IF(B103>0,1,0))","v":1}]
["Fläche in NATURA 2000-Gebiet",null,null,null,null,null,null,{"$f":"IF(ISBLANK(B104),1,IF(B104=\"Ja\",1,0))","v":1}]
["Ökologischer Landbau",null,null,null,null,null,null,{"$f":"IF(ISBLANK(B105),1,IF(D108>0,1,0))","v":1}]
["Tierhaltung geplant",null,null,null,null,null,null,{"$f":"IF(ISBLANK(Tierhaltung_geplant),1,IF(OR(Tierhaltung_geplant=\"Ja\",RGV_DGL>0),1,0))","v":1}]
[null,"Ja","Mindestgröße erreicht","ÖLB","Natura2000","Tierhaltung",null,0]
[null,"Nein",{"$f":"Landwirtschaftlich_genutzte_Fläche>=Mindestgröße","v":false},{"$f":"IFERROR(LEFT(Ökologischer_Landbau,2)=\"Ja\",0)","v":0},{"$f":"IFERROR(LEFT(Fläche_in_NATURA_2000_Gebiet,2)=\"Ja\",0)","v":0},{"$f":"IFERROR(OR(LEFT(Tierhaltung_geplant,2)=\"Ja\",SUM(D136:D140)>0),0)","v":0},null,0]
[null,null,10]
[{"$f":"\"Anbauplan für Acker im Jahr \"","v":"Anbauplan für Acker im Jahr "},2024,null,null,null,null,null,1]
["Fruchtart","Fläche",null,"Voraussichtliche Prämienzahlungen",null,null,null,1,"Kulturart","Hauptnutzungsart","Anbauanteile","S/W","Legum"]
[{"$f":"IF(Ackerfläche>0,\"Unproduktive Ackerfläche\",\"\")","v":""},null,null,"Einkommensgrundstützung",null,{"$f":"IFERROR(Landwirtschaftlich_genutzte_Fläche*INDEX(Basisprämie,Planjahr-2022),0)","v":0},null,1,{"$f":"IFERROR(VLOOKUP(A112,Hauptkulturen,6,FALSE),\"\")","v":""},{"$f":"IFERROR(VLOOKUP(A112,Hauptkulturen,3,FALSE),\"\")","v":""},{"$f":"IFERROR(IF(AND(LEN(J112)=1,J112=\"A\"),B112/AFanbau,0),0)","v":0},{"$f":"IFERROR(VLOOKUP(A112,Hauptkulturen,4,FALSE),\"\")","v":""},{"$f":"IFERROR(VLOOKUP(A112,Hauptkulturen,5,FALSE),\"\")","v":""}]
[null,null,null,"Umverteilungsprämie",null,{"$f":"IFERROR(IF(Landwirtschaftlich_genutzte_Fläche>40,40,Landwirtschaftlich_genutzte_Fläche)*INDEX(UVP_1__bis_30__40,Planjahr-2022)+\nIF(Landwirtschaftlich_genutzte_Fläche>60,20,IF(Landwirtschaftlich_genutzte_Fläche>40,Landwirtschaftlich_genutzte_Fläche-40,0))*INDEX(UVP_2__bis_46__60,Planjahr-2022),0)","v":0},null,1,"",0,0,0,0]
[null,null,null,"Junglandwirteprämie",null,{"$f":"F157","v":0},null,1,"",0,0,0,0]
[null,null,null,"Tierhaltungsprämien",null,{"$f":"IFERROR(SUM(F136:F138),0)","v":0},null,1,"",0,0,0,0]
[null,null,null,"Ökoregelungen",null,{"$f":"IFERROR(SUM(F159:F178),0)","v":0},null,1,"",0,0,0,0]
[null,null,null,"Agrar-Umwelt-Klima-Maßnahmen",null,{"$f":"IFERROR(SUM(F180:F268)-SUM(F270:F388),0)","v":0},null,1,"",0,0,0,0]
[null,null,null,"Summe",{"$f":"IFERROR(F118/Landwirtschaftlich_genutzte_Fläche,\"\")","v":""},{"$f":"SUM(F112:F117)","v":0},null,1,"",0,0,0,0]
[null,null,null,null,null,null,null,1,"",0,0,0,0]
[null,null,null,null,null,null,null,{"$f":"IF(AND(ISBLANK(A119),ISBLANK(A120)),0,1)","v":0},"",0,0,0,0]
[null,null,null,null,null,null,null,{"$f":"IF(AND(ISBLANK(A120),ISBLANK(A121)),0,1)","v":0},"",0,0,0,0]
[null,null,null,null,null,null,null,0,"",0,0,0,0]
[null,null,null,null,null,null,null,0,"",0,0,0,0]
[null,null,null,null,null,null,null,0,"",0,0,0,0]
[null,null,null,null,null,null,null,0,"",0,0,0,0]
[null,null,null,null,null,null,null,0,"",0,0,0,0]
[null,null,null,null,null,null,null,0,"",0,0,0,0]
[null,null,null,null,null,null,null,0,"",0,0,0,0]
[null,null,null,null,null,null,null,0,"",0,0,0,0]
[null,null,null,null,null,null,null,0,"",0,0,0,0]
[null,null,null,null,null,null,null,0,"",0,0,0,0]
[null,null,null,null,null,null,null,0,"",0,0,0,0]
["Summe",{"$f":"SUM(B112:B132)","v":0},null,null,null,null,null,1,null,null,0,null,""]
[{"$f":"IF(Planjahr>0,\"Geplante Haltung prämienberechtigter Tiere und Rauhfutterfresser für das Jahr \"&TEXT(Planjahr,\"0\"),\"Prämienberechtigte Tiere\")","v":"Geplante Haltung prämienberechtigter Tiere und Rauhfutterfresser für das Jahr 2024"},null,null,null,null,null,null,{"$f":"IF(ISBLANK(Tierhaltung_geplant),1,IF(Tierhaltung,1,0))","v":1},"Minimaler Umfang"]
["Tierart","Prämie","Anzahl Tiere","Großvieheinheiten",null,"Direktzahlungen",null,{"$f":"IF(ISBLANK(Tierhaltung_geplant),1,Tierhaltung)","v":1}]
["Mutterkühe",{"$f":"INDEX(Mutterkuhprämie,Planjahr-2022)","v":77.06},null,{"$f":"C136","v":0},null,{"$f":"IFERROR(IF(AND(C139=0,Landwirtschaftlich_genutzte_Fläche>=1,C136>=3),C136*B136,0),0)","v":0},null,1,3]
["Schafe",{"$f":"INDEX(Schafprämie,Planjahr-2022)","v":34.44},null,{"$f":"C137*0.15","v":0},null,{"$f":"IFERROR(IF(AND(Landwirtschaftlich_genutzte_Fläche>=1,C137>=6),C137*B137,0),0)","v":0},null,1,6]
["Ziegen",{"$f":"INDEX(Ziiegenprämie,Planjahr-2022)","v":34.44},null,{"$f":"C138*0.15","v":0},null,{"$f":"IFERROR(IF(AND(Landwirtschaftlich_genutzte_Fläche>=1,C138>=6),C138*B138,0),0)","v":0},null,1,6]
["Milchkühe",null,null,{"$f":"C139*1","v":0},null,null,null,1]
["andere Rauhfutterfresser (Jungrinder, Bullen, Pferde)",null,null,null,{"$f":"IFERROR(SUM(D136:D140)/Dauergrünlandfläche,0)","v":0},null,null,1]
["Konditionalität",null,null,null,null,null,null,1]
["Grundanforderungen an die Betriebsführung (GAB) und ",null,null,null,null,null,null,1]
["Erhaltung der Flächen in gutem landwirtschaftlichen und ökologischem Zustand (GLÖZ)",null,null,null,null,null,null,1]
["sind Voraussetzung für den Bezug der Basisprämie und für die Teilnahme an Ökoregelungen und AUKM.",null,null,null,null,null,null,1]
["GLÖZ 1: Erhalt von Dauergrünland",null,null,null,null,null,null,{"$f":"AND(MindGrerr,OR(Dauergrünlandfläche>0,ISBLANK(Dauergrünlandfläche)))","v":false}]
["GLÖZ 2: Mindestschutz für Feuchtgebiete und Moore",null,null,null,null,null,null,{"$f":"AND(MindGrerr,Dauergrünlandfläche>0)","v":false}]
["GLÖZ 3: Verbot des Abbrennens von Stoppelfeldern",null,null,null,null,null,null,{"$f":"AND(MindGrerr,Ackerfläche>0)","v":false}]
["GLÖZ 4: Mindestens 3 m Pufferstreifen entlang von Wasserläufen (ab 1000 m² auf Mindestanteil unproduktiver Ackerfläche anrechenbar)",null,null,null,null,null,null,{"$f":"AND(MindGrerr,Ackerfläche>10)","v":false}]
["GLÖZ 5: Länder teilen Flächen nach Gefährdung durch Erosion ein, auf gefährdeten Flächen gelten strengere Auflagen zur Bodenbearbeitung",null,null,null,null,null,null,{"$f":"AND(MindGrerr,Ackerfläche>0)","v":false}]
["GLÖZ 6: Mindest-Bodenbedeckung im Zeitraum vom 1.12. bis 15.1. durch mehrjährige Kulturen, Winterkulturen, Zwischenfrüchte, Stoppelbrache, Mulchauflage",null,null,null,null,null,null,{"$f":"AND(MindGrerr,Ackerfläche>10)","v":false}]
["GLÖZ 7: vorgeschriebener Fruchtwechsel auf Ackerland, bis zu 50 % durch Zwischenfrüchte möglich",null,null,null,null,null,null,{"$f":"IF(AND(MindGrerr,Ackerfläche>10),1,0)","v":0}]
["GLÖZ 8: Mindestens 4 % unproduktives Ackerland, angrenzende Landschaftselemente werden angerechnet",null,null,null,null,null,null,{"$f":"AND(MindGrerr,Ackerfläche>10)","v":false}]
[{"$f":"IF(AND(MindGrerr,Ackerfläche>10,vHunproduktive_AF<MindestStilllegung),\n\"Im Anbauplan wird der Mindestanteil an nicht-produktiven Ackerflächen (4 %) unterschritten! Es fehlen noch \"\n&TEXT(ROUNDUP((4%-vHunproduktive_AF)*Ackerfläche,1),\"0,0\")&\" ha.\",\"\")","v":""},null,null,null,null,null,null,{"$f":"IFERROR(IF(LEN(A153)>0,1,0),1)","v":0}]
["GLÖZ 9: Schutz von Umweltsensiblem Dauergrünland",null,null,null,null,null,null,{"$f":"Dauergrünlandfläche>0","v":false}]
[]
["Junglandwirteprogramm","Prämie","Voraussetzung erfüllt / \nTeilnahme","Umfang","maximaler Umfang","mögliche Direktzahlungen",null,{"$f":"IF(ISBLANK(JLP),1,IF(JLP,1,0))","v":1}]
["Junglandwirteprämie",{"$f":"INDEX(Junglandwirteprämie__bis_120,Planjahr-2022)","v":134},null,{"$f":"IF(JLP,IF(Landwirtschaftlich_genutzte_Fläche>120,120,Landwirtschaftlich_genutzte_Fläche),0)","v":0},{"$f":"IFERROR(IF(Landwirtschaftlich_genutzte_Fläche>120,120,Landwirtschaftlich_genutzte_Fläche),0)","v":0},{"$f":"IF(JLP,D157*B157,0)","v":0},null,{"$f":"IF(ISBLANK(JLP),1,IF(JLP,1,0))","v":1}]
["Ökoregelungen","Prämie","Voraussetzung erfüllt / \nTeilnahme","geplanter Umfang","maximaler Umfang","mögliche Direktzahlungen","Fördergegenstand",1,"Minimaler Umfang"]
["1. Verbesserung der Biodiversität",null,null,0,null,null,null,{"$f":"IF(MindGrerr,Ackerfläche>0,1)","v":1}]
["Aufstockung nicht produktiver Fläche",null,null,0,null,null,null,1]
[0.01,{"$f":"INDEX(ÖR1a1,Planjahr-2022)","v":1300},{"$f":"IFERROR(AND(Landwirtschaftlich_genutzte_Fläche>=1,NOT(ÖLB),vHunproduktive_AF>=MindestStilllegung+A161),0)","v":false},null,{"$f":"IF(C161,IF(Ackerfläche<100,1,1%*Ackerfläche),0)","v":0},{"$f":"IFERROR(IF(C161,IF(ISBLANK(D161),0,MIN(E161,D161)),0)*B161,0)","v":0},"1a1",1]
[0.02,{"$f":"INDEX(ÖR1a2,Planjahr-2022)","v":500},{"$f":"IFERROR(AND(Landwirtschaftlich_genutzte_Fläche>=1,NOT(ÖLB),vHunproduktive_AF>=MindestStilllegung+A162),0)","v":false},null,{"$f":"IF(C162,IF(vHunproduktive_AF>=MindestStilllegung+2%,1%,vHunproduktive_AF-MindestStilllegung-1%),0)*Ackerfläche","v":0},{"$f":"IFERROR(IF(C162,IF(ISBLANK(D162),0,MIN(E162,D162)),0)*B162,0)","v":0},"1a2",1]
[0.06,{"$f":"INDEX(ÖR1a3,Planjahr-2022)","v":300},{"$f":"IFERROR(AND(Landwirtschaftlich_genutzte_Fläche>=1,NOT(ÖLB),vHunproduktive_AF>MindestStilllegung+2%),0)","v":false},null,{"$f":"IF(C163,IF(vHunproduktive_AF>MindestStilllegung+A163,4%,vHunproduktive_AF-MindestStilllegung-2%),0)*Ackerfläche","v":0},{"$f":"IFERROR(IF(C163,IF(ISBLANK(D163),0,MIN(E163,D163)),0)*B163,0)","v":0},"1a3",1]
["Blühflächen auf Ackerland",{"$f":"INDEX(ÖR1b,Planjahr-2022)","v":200},{"$f":"AND(Landwirtschaftlich_genutzte_Fläche>=1,NOT(ÖLB),vHunproduktive_AF>0)","v":false},null,{"$f":"IF(AND(MindGrerr,vHunproduktive_AF>MindestStilllegung),MIN(SUM($D$161:$D$163),SUM(E161:E163),3),0)","v":0},{"$f":"IFERROR(IF(C164,IF(ISBLANK(D164),0,MIN(E164,D164)),0)*B164,0)","v":0},"1b",1,0.1]
["Blühflächen in Dauerkulturen",{"$f":"INDEX(ÖR1c,Planjahr-2022)","v":200},{"$f":"AND(Landwirtschaftlich_genutzte_Fläche>=1,Dauerkulturfläche>0)","v":false},null,{"$f":"Dauerkulturfläche","v":0},{"$f":"IFERROR(IF(C165,MIN(D165,E165),0)*B165,0)","v":0},"1c",{"$f":"IF(MindGrerr,Dauerkulturfläche>0,1)","v":1},0.1]
["Altgrasflächen auf Dauergrünland",null,{"$f":"IFERROR(AND(Landwirtschaftlich_genutzte_Fläche>=1,Dauergrünlandfläche>0),0)","v":false},null,{"$f":"Dauergrünlandfläche*6%","v":0},null,null,{"$f":"IF(MindGrerr,Dauergrünlandfläche>0,1)","v":1},0.1]
[0.01,{"$f":"INDEX(ÖR1d1,Planjahr-2022)","v":900},{"$f":"IFERROR(AND(Landwirtschaftlich_genutzte_Fläche>=1,D166>0),0)","v":false},{"$f":"IF(C167,IF(D166>=1%*Dauergrünlandfläche,1%*Dauergrünlandfläche,D166))","v":false},{"$f":"Dauergrünlandfläche*1%","v":0},{"$f":"IFERROR(IF(C167,D167,0)*B167,0)","v":0},"1d1",{"$f":"IF(MindGrerr,Dauergrünlandfläche>0,1)","v":1}]
[0.03,{"$f":"INDEX(ÖR1d2,Planjahr-2022)","v":400},{"$f":"IFERROR(AND(Landwirtschaftlich_genutzte_Fläche>=1,D166>1%*Dauergrünlandfläche),0)","v":false},{"$f":"IF(C168,IF(D166>=Dauergrünlandfläche*3%,2%*Dauergrünlandfläche,D166-D167))","v":false},{"$f":"Dauergrünlandfläche*2%","v":0},{"$f":"IFERROR(IF(C168,D168,0)*B168,0)","v":0},"1d2",{"$f":"IF(MindGrerr,Dauergrünlandfläche>0,1)","v":1}]
[0.06,{"$f":"INDEX(ÖR1d3,Planjahr-2022)","v":200},{"$f":"IFERROR(AND(Landwirtschaftlich_genutzte_Fläche>=1,D166>3%*Dauergrünlandfläche),0)","v":false},{"$f":"IF(C169,IF(D166>=Dauergrünlandfläche*6%,3%*Dauergrünlandfläche,D166-D167-D168))","v":false},{"$f":"Dauergrünlandfläche*3%","v":0},{"$f":"IFERROR(IF(C169,D169,0)*B169,0)","v":0},"1d3",{"$f":"IF(MindGrerr,Dauergrünlandfläche>0,1)","v":1}]
[{"$f":"\"2. Vielfältige Kulturen\"\n&IF(AND(MindGrerr,OR(C170=0,vHGetreide_mit_Silomais>66%)),\" (\"\n&IF((HK10bis30+HKunter10)<5,TEXT((HK10bis30+HKunter10),\"0\")&\" von 5 Kulturen, \",\"\")\n&IF(MAX(K112:K133)>30%,\"Anbauanteil bei mindestens einer Kultur über 30 %, \",\"\")\n&IF((vHgroßkörnige_Leguminosen+vHkleinkörnige_Leguminosen)<10%,\"zu wenig Leguminosen, \",\"\")\n&IF(vHGetreide>66%,\"zu viel Getreide, \",IF(vHGetreide_mit_Silomais>66%,\"möglicherweise wird Silomais zum Getreide gerechnet und der Anteil zu hoch, \",\"\"))&\")\",\"\")","v":"2. Vielfältige Kulturen"},{"$f":"INDEX(ÖR2,Planjahr-2022)","v":60},{"$f":"IFERROR(AND(MindGrerr,(HK10bis30+HKunter10)>=5,(vHgroßkörnige_Leguminosen+vHkleinkörnige_Leguminosen)>=10%,vHGetreide<=66%,MAX(K112:K133)<=30%),0)","v":false},null,{"$f":"AFanbau","v":0},{"$f":"IFERROR(IF(C170,IF(ISBLANK(D170),0,MIN(E170,D170)),0)*B170,0)","v":0},2,{"$f":"IF(MindGrerr,Ackerfläche>0,1)","v":1},{"$f":"AFanbau","v":0}]
["3. Agroforst",{"$f":"INDEX(ÖR3,Planjahr-2022)","v":200},null,null,{"$f":"SUMIFS($B$112:$B$132,$A$112:$A$132,\"Agroforst\")+Dauergrünlandfläche","v":0},{"$f":"IFERROR(IF(C171,IF(ISBLANK(D171),0,MIN(E171,D171)),0)*B171,0)","v":0},3,{"$f":"IF(MindGrerr,Ackerfläche>0,1)","v":1}]
[{"$f":"\"4. Extensivierung des gesamten Dauergrünlands\"&CHAR(10)&\nIF(AND(MindGrerr,RGV_DGL<0.3),\"    (Viehbesatz um \"&TEXT((0.3-RGV_DGL)*Dauergrünlandfläche,\"0\")&\" GV\"&\" zu gering!)\",\"\")&\nIF(AND(MindGrerr,RGV_DGL>1.4),\" (Viehbesatz um \"&TEXT((RGV_DGL-1.4)*Dauergrünlandfläche,\"0\")&\" GV\"&\" zu hoch!)\",\"\")","v":"4. Extensivierung des gesamten Dauergrünlands\n"},{"$f":"INDEX(ÖR4,Planjahr-2022)","v":100},null,{"$f":"IF(C172,Dauergrünlandfläche,0)","v":0},{"$f":"Dauergrünlandfläche","v":0},{"$f":"IFERROR(IF(C172,IF(ISBLANK(D172),0,MIN(E172,D172)),0)*B172,0)","v":0},4,{"$f":"IF(MindGrerr,Dauergrünlandfläche>0,1)","v":1},{"$f":"Dauergrünlandfläche","v":0}]
["5. Kennarten auf Dauergrünland",{"$f":"INDEX(ÖR5,Planjahr-2022)","v":240},null,null,{"$f":"Dauergrünlandfläche","v":0},{"$f":"IFERROR(IF(C173,IF(ISBLANK(D173),0,MIN(E173,D173)),0)*B173,0)","v":0},5,{"$f":"IF(MindGrerr,Dauergrünlandfläche>0,1)","v":1}]
["6. Verzicht auf chemisch-synthetische Pflanzenschutzmittel",null,null,0,null,null,null,{"$f":"IF(MindGrerr,Ackerfläche>0,1)","v":1}]
["  - Sommerungen und Dauerkulturen",{"$f":"INDEX(ÖR6a,Planjahr-2022)","v":150},null,null,{"$f":"SUMIFS(B112:B132,L112:L132,\"S\")+Dauerkulturfläche","v":0},{"$f":"IFERROR(IF(C175,IF(ISBLANK(D175),0,MIN(E175,D175)),0)*B175,0)","v":0},"6a",{"$f":"IF(MindGrerr,Ackerfläche>0,1)","v":1}]
["  - Gras, Grünfutter, Leguminosen",{"$f":"INDEX(ÖR6b,Planjahr-2022)","v":50},null,null,{"$f":"Ackerfutter","v":0},{"$f":"IFERROR(IF(C176,IF(ISBLANK(D176),0,MIN(E176,D176)),0)*B176,0)","v":0},"6b",{"$f":"IF(MindGrerr,Ackerfläche>0,1)","v":1}]
["7. Landbewirtschaftungsmethoden in NATURA2000-Gebieten",{"$f":"INDEX(ÖR7,Planjahr-2022)","v":40},null,null,{"$f":"AFanbau","v":0},{"$f":"IFERROR(IF(C177,IF(ISBLANK(D177),0,MIN(E177,D177)),0)*B177,0)","v":0},7,{"$f":"IF(ISBLANK(Fläche_in_NATURA_2000_Gebiet),0,Fläche_in_NATURA_2000_Gebiet)","v":0}]
[null,null,null,0,null,null,null,0]
["Agrar-Umwelt-Klima-Maßnahmen","Prämie","Voraussetzung erfüllt /\n Teilnahme","geplanter Umfang","maximaler Umfang","mögliche Direktzahlungen","Nummerierung GAP-Strategieplan",1,"Minimaler Umfang"]
[{"$f":"\"1. Extensivierung: \" &IF(ÖLB,MID(Ökologischer_Landbau,4,20)&\")\",\"\")&\" Ökologischer Landbau\"","v":"1. Extensivierung:  Ökologischer Landbau"},null,null,0,null,null,null,{"$f":"IF(ISBLANK(Ökologischer_Landbau),1,IF(Ökologischer_Landbau=\"Nein\",0,1))","v":1}]
["Einführung Neueinsteiger",null,{"$f":"IF(AND(ÖLB,Ökologischer_Landbau=\"Ja Neueinstieg\"),1,0)","v":0},0,null,{"$f":"IFERROR(IF(C181,MIN(VALUE(D181),VALUE(E181)),0)*B181,0)","v":0},null,{"$f":"IF(ISBLANK(Ökologischer_Landbau),1,0)","v":1}]
["Ökologischer Ackerbau",350,{"$f":"IF(AND(ÖLB,Ökologischer_Landbau=\"Ja Neueinstieg\"),1,0)","v":0},{"$f":"IF(C182,Ackerfläche-Gemüse,0)","v":0},{"$f":"Ackerfläche-Gemüse","v":0},{"$f":"IFERROR(IF(C182,IF(ISBLANK(D182),0,MIN(E182,D182)),0)*B182,0)","v":0},"EL-0108-01 a1",{"$f":"IF(ISBLANK(Ökologischer_Landbau),1,IF(AND(ÖLB,Ökologischer_Landbau=\"Ja Neueinstieg\"),1,0))","v":1}]
[{"$f":"\"Ökologisches Dauergrünland\"&\nIF(AND(MindGrerr,DGL>0,RGV_DGL<0.3),\" (Viehbesatz um \"&TEXT((0.3-RGV_DGL)*Dauergrünlandfläche,\"0\")&\" GV zu gering!)\",\"\")\n&IF(AND(MindGrerr,RGV_DGL>1.4),\" (Viehbesatz um \"&TEXT((RGV_DGL-1.4)*Dauergrünlandfläche,\"0\")&\" GV zu hoch!)\",\"\")","v":"Ökologisches Dauergrünland"},425,{"$f":"IF(AND(ÖLB,Ökologischer_Landbau=\"Ja Neueinstieg\"),1,0)","v":0},{"$f":"IF(C183,Dauergrünlandfläche,0)","v":0},{"$f":"Dauergrünlandfläche","v":0},{"$f":"IFERROR(IF(C183,IF(ISBLANK(D183),0,MIN(E183,D183)),0)*B183,0)","v":0},"EL-0108-01 b1",{"$f":"IF(ISBLANK(Ökologischer_Landbau),1,IF(AND(ÖLB,Ökologischer_Landbau=\"Ja Neueinstieg\"),1,0))","v":1}]
["Ökologischer Gemüsebau",630,{"$f":"IF(AND(ÖLB,Ökologischer_Landbau=\"Ja Neueinstieg\"),1,0)","v":0},{"$f":"IF(C184,Gemüse,0)","v":0},{"$f":"Gemüse","v":0},{"$f":"IFERROR(IF(C184,IF(ISBLANK(D184),0,MIN(E184,D184)),0)*B184,0)","v":0},"EL-0108-01 c1",{"$f":"IF(ISBLANK(Ökologischer_Landbau),1,IF(AND(ÖLB,Ökologischer_Landbau=\"Ja Neueinstieg\"),1,0))","v":1}]
["Ökologische Dauerkulturen",1300,{"$f":"IF(AND(ÖLB,Ökologischer_Landbau=\"Ja Neueinstieg\"),1,0)","v":0},{"$f":"IF(C185,Dauerkulturfläche,0)","v":0},{"$f":"Dauerkulturfläche","v":0},{"$f":"IFERROR(IF(C185,IF(ISBLANK(D185),0,MIN(E185,D185)),0)*B185,0)","v":0},"EL-0108-01 d1",{"$f":"IF(ISBLANK(Ökologischer_Landbau),1,IF(AND(ÖLB,Ökologischer_Landbau=\"Ja Neueinstieg\"),1,0))","v":1}]
["Beibehalter",null,{"$f":"IF(AND(ÖLB,Ökologischer_Landbau=\"Ja Beibehaltung\"),1,0)","v":0},0,null,{"$f":"IFERROR(IF(C186,MIN(VALUE(D186),VALUE(E186)),0)*B186,0)","v":0},null,{"$f":"IF(ISBLANK(Ökologischer_Landbau),1,0)","v":1}]
["Ökologischer Ackerbau",284,{"$f":"IF(AND(ÖLB,Ökologischer_Landbau=\"Ja Beibehaltung\"),1,0)","v":0},{"$f":"IF(C187,Ackerfläche-Gemüse,0)","v":0},{"$f":"Ackerfläche","v":0},{"$f":"IFERROR(IF(C187,IF(ISBLANK(D187),0,MIN(E187,D187)),0)*B187,0)","v":0},"EL-0108-02 a1",{"$f":"IF(ISBLANK(Ökologischer_Landbau),1,IF(AND(ÖLB,Ökologischer_Landbau=\"Ja Beibehaltung\"),1,0))","v":1}]
[{"$f":"\"Ökologisches Dauergrünland\"&\nIF(AND(MindGrerr,RGV_DGL<0.3,DGL>0),\" (Viehbesatz um \"&TEXT((0.3-RGV_DGL)*Dauergrünlandfläche,\"0\")&\" GV zu gering!)\",\"\")\n&IF(AND(MindGrerr,RGV_DGL>1.4),\" (Viehbesatz um \"&TEXT((RGV_DGL-1.4)*Dauergrünlandfläche,\"0\")&\" GV zu hoch!)\",\"\")","v":"Ökologisches Dauergrünland"},284,{"$f":"IF(AND(ÖLB,Ökologischer_Landbau=\"Ja Beibehaltung\",RGV_DGL>=0.3),1,0)","v":0},{"$f":"IF(C188,Dauergrünlandfläche,0)","v":0},{"$f":"Dauergrünlandfläche","v":0},{"$f":"IFERROR(IF(C188,IF(ISBLANK(D188),0,MIN(E188,D188)),0)*B188,0)","v":0},"EL-0108-02 b1",{"$f":"IF(ISBLANK(Ökologischer_Landbau),1,IF(AND(ÖLB,Ökologischer_Landbau=\"Ja Beibehaltung\"),1,0))","v":1}]
["Ökologischer Gemüsebau",490,{"$f":"IF(AND(ÖLB,Ökologischer_Landbau=\"Ja Beibehaltung\"),1,0)","v":0},{"$f":"IF(C189,Gemüse,0)","v":0},{"$f":"Gemüse","v":0},{"$f":"IFERROR(IF(C189,IF(ISBLANK(D189),0,MIN(E189,D189)),0)*B189,0)","v":0},"EL-0108-02 c1",{"$f":"IF(ISBLANK(Ökologischer_Landbau),1,IF(AND(ÖLB,Ökologischer_Landbau=\"Ja Beibehaltung\"),1,0))","v":1}]
["Ökologische Dauerkulturen",850,{"$f":"IF(AND(ÖLB,Ökologischer_Landbau=\"Ja Beibehaltung\"),1,0)","v":0},{"$f":"IF(C190,Dauerkulturfläche,0)","v":0},{"$f":"Dauerkulturfläche","v":0},{"$f":"IFERROR(IF(C190,IF(ISBLANK(D190),0,MIN(E190,D190)),0)*B190,0)","v":0},"EL-0108-02 d1",{"$f":"IF(ISBLANK(Ökologischer_Landbau),1,IF(AND(ÖLB,Ökologischer_Landbau=\"Ja Beibehaltung\"),1,0))","v":1}]
["Transaktionskostenausgleich",40,{"$f":"IF(ÖLB,1,0)","v":0},{"$f":"IF(Landwirtschaftlich_genutzte_Fläche>E191,E191,Landwirtschaftlich_genutzte_Fläche)","v":0},{"$f":"IF(AND(ÖLB,C191),IF(Landwirtschaftlich_genutzte_Fläche>15,15,Landwirtschaftlich_genutzte_Fläche),0)","v":0},{"$f":"IFERROR(IF(C191,IF(ISBLANK(D191),0,MIN(E191,D191)),0)*B191,0)","v":0},"EL-0108-02 e1",{"$f":"IF(ISBLANK(Ökologischer_Landbau),1,C191)","v":1}]
["2. Erosionsschutz",null,null,0,null,null,null,{"$f":"IF(MindGrerr,Landwirtschaftlich_genutzte_Fläche>0,1)","v":1}]
["Erosionsschutzflächen",500,null,null,{"$f":"IF(MindGrerr,\nIF(UnproduktiveAF>(Ackerfläche*MindestStilllegung+SUM($D$161:$D$163,$D$196,$D$198,$D$199,$D$200)),\nUnproduktiveAF-Ackerfläche*MindestStilllegung-SUM($D$161:$D$163,$D$196,$D$198,$D$199,$D$200),0),0)","v":0},{"$f":"IFERROR(IF(C193,IF(ISBLANK(D193),0,MIN(E193,D193)),0)*B193,0)","v":0},"EL-0103-01 1a1",{"$f":"IF(MindGrerr,Ackerfläche>0,1)","v":1}]
["Strip-Till/Direktsaatverfahren",65,null,null,{"$f":"AFanbau","v":0},{"$f":"IFERROR(IF(C194,IF(ISBLANK(D194),0,MIN(E194,D194)),0)*B194,0)","v":0},"EL-0103-03 a1",{"$f":"IF(MindGrerr,Ackerfläche>0,1)","v":1}]
["3. Gewässerrandstreifen",null,null,0,null,{"$f":"IFERROR(IF(C195,MIN(VALUE(D195),VALUE(E195)),0)*B195,0)","v":0},null,1]
["Gewässerschutz-/Uferrandstreifen ",704,null,null,{"$f":"IF(MindGrerr,\nIF(UnproduktiveAF>(Ackerfläche*MindestStilllegung+SUM($D$161:$D$163,$D$193,$D$198,$D$199,$D$200)),\nUnproduktiveAF-Ackerfläche*MindestStilllegung-SUM($D$161:$D$163,$D$193,$D$198,$D$199,$D$200),0),0)","v":0},{"$f":"IFERROR(IF(C196,IF(ISBLANK(D196),0,MIN(E196,D196)),0)*B196,0)","v":0},"EL-0102-01 a1",{"$f":"IF(MindGrerr,Ackerfläche>0,1)","v":1}]
["4. Naturschutzorientierte Ackernutzung",null,null,0,null,{"$f":"IFERROR(IF(C197,MIN(VALUE(D197),VALUE(E197)),0)*B197,0)","v":0},null,1]
["Getreide mit doppeltem Reihenabstand",600,null,null,{"$f":"IF(MindGrerr,\nGetreide,0)","v":0},{"$f":"IFERROR(IF(C198,IF(ISBLANK(D198),0,MIN(E198,D198)),0)*B198,0)","v":0},"EL-0105-03 b1",{"$f":"IF(MindGrerr,Ackerfläche>0,1)","v":1}]
["Mehrjährige Blühstreifen und -flächen",800,null,null,{"$f":"IF(MindGrerr,\nIF(UnproduktiveAF>(Ackerfläche*MindestStilllegung+SUM($D$161:$D$163,$D$196,$D$198,$D$193,$D$200)),\nUnproduktiveAF-Ackerfläche*MindestStilllegung-SUM($D$161:$D$163,$D$196,$D$198,$D$193,$D$200),0),0)","v":0},{"$f":"IFERROR(IF(C199,IF(ISBLANK(D199),0,MIN(E199,D199)),0)*B199,0)","v":0},"EL-0105-03 c1",{"$f":"IF(MindGrerr,Ackerfläche>0,1)","v":1}]
["Pufferstreifen an gesetzlich geschützten Biotopen, Alleen, Waldrändern",325,null,null,{"$f":"IF(MindGrerr,\nIF(UnproduktiveAF>(Ackerfläche*MindestStilllegung+SUM($D$161:$D$163,$D$196,$D$198,$D$199,$D$193)),\nUnproduktiveAF-Ackerfläche*MindestStilllegung-SUM($D$161:$D$163,$D$196,$D$198,$D$199,$D$193),0),0)","v":0},{"$f":"IFERROR(IF(C200,IF(ISBLANK(D200),0,MIN(E200,D200)),0)*B200,0)","v":0},"EL-0105-03 c2",{"$f":"IF(MindGrerr,Ackerfläche>0,1)","v":1}]
["5. Umweltschonender Obst- und Gemüsebau",null,null,0,null,null,null,{"$f":"IF(MindGrerr,Dauerkulturfläche+Gemüse>0,1)","v":1}]
["6.2.1 Bacillus thuringiensis-Präparate gegen Frostspanner im Kern- und Steinobst  ",123,null,null,{"$f":"Dauerkulturfläche","v":0},{"$f":"IFERROR(IF(C202,IF(ISBLANK(D202),0,MIN(E202,D202)),0)*B202,0)","v":0},null,{"$f":"IF(MindGrerr,Dauerkulturfläche>0,0)","v":0},{"$f":"Dauerkulturfläche","v":0},null,null,null,"Gewächshauskulturen und/oder Gemüsebauüber Betriebsdaten?"]
["6.2.2 Virusverfahren gegen Apfelwickler",152,null,null,0,0,null,0,0]
["6.2.3 Virusverfahren gegen Apfelschalenwickler, mind. zweimal",142,null,null,0,0,null,0,0]
["6.2.4 Virusverfahren gegen Apfelschalenwickler",54,null,null,0,0,null,0,0]
["6.2.5 Bacillus thuringiensis-Präparate gegen Schalenwickler",94,null,null,0,0,null,0,0]
["6.2.6 Neem-Präparate gegen Apfelblattlaus",225,null,null,0,0,null,0,0]
["6.2.7 ausschließlich mechanische Unkrautbekämpfung im Streifenbereich von Bäumen und Sträuchern",383,null,null,0,0,null,0,0]
["6.2.8 Fettsäure-Kaliumsalze gegen Blattsauger und Spinnmilben im Kern- und Steinobst",149,null,null,0,0,null,0,0]
["6.2.9 Fettsäure-Kaliumsalze gegen Blattsauger und Spinnmilben im Beerenobst",119,null,null,0,0,null,0,0]
["6.2.10 Fettsäure-Kaliumsalze gegen Blattsauger und Spinnmilben in Erdbeeren",133,null,null,0,0,null,0,0]
["6.2.11 Tagetes zur biologischen Bodendesinfektion in Apfel",396,null,null,0,0,null,0,0]
["6.2.12 Pheromon gegen Apfelwickler",235,null,null,0,0,null,0,0]
["6.2.13 Pheromon und Virusverfahren gegen Apfelwickler",561,null,null,0,0,null,0,0]
["6.4 Blüh- oder Begrünungsfläche im Obstbau",114,null,null,{"$f":"MIN(3%*Dauerkulturfläche,E200-D200)","v":0},0,null,0,{"$f":"Dauerkulturfläche*3%","v":0}]
["6.3.1 Bacillus thuringiensis-Präparate gegen Schadraupen im Gemüse",68,null,null,{"$f":"Gemüse","v":0},0,null,{"$f":"IF(MindGrerr,Gemüse>0,0)","v":0},null,null,null,null,"Gewächshauskulturen und/oder Gemüsebauüber Betriebsdaten?"]
["6.3.2 minitans-\nPräparate gegen Sklerotinia Coniothyrium im Gemüse",79,null,null,{"$f":"Gemüse","v":0},0,null,0]
["6.3.3 ausschließlich mechanische Unkrautbekämpfung im Gemüse",143,null,null,{"$f":"Gemüse","v":0},0,null,0]
["6.3.4, 6.3.5 Winterbegrünung vor oder nach Gemüse",101,null,null,{"$f":"Gemüse","v":0},0,null,0,null,null,null,null,"Kombiniert Obst (DK) und Gemüse"]
["6.3.6 Tagetes gegen Nematoden in Erdbeeren",396,null,null,{"$f":"+Dauerkulturfläche","v":0},0,null,0,null,null,null,null,"Kombiniert Obst (DK) und Gemüse"]
["6.3.7 Fettsäure-Kaliumsalze gegen Blattläuse im Gemüse",216,null,null,{"$f":"+Gemüse","v":0},0,null,0,null,null,null,null,"Kombiniert Obst (DK) und Gemüse"]
["6.4 Blüh- oder Begrünungsfläche im Gemüsebau",69,null,null,{"$f":"3%*Gemüse","v":0},0,null,0,{"$f":"3%*Gemüse","v":0}]
["6. Dauerhafte Umwandlung von Ackerflächen in \nDauergrünland",null,null,0,null,null,null,{"$f":"IF(MindGrerr,Dauergrünlandfläche>0,1)","v":1}]
["Umwandlung Ackerland in Dauergrünland",1300,null,null,{"$f":"Dauergrünlandfläche","v":0},{"$f":"IFERROR(IF(C224,IF(ISBLANK(D224),0,MIN(E224,D224)),0)*B224,0)","v":0},"EL-0101-01 b1",{"$f":"IF(MindGrerr,Dauergrünlandfläche>0,1)","v":1}]
["7. vielfältigen Kulturen im Ackerbau",null,null,0,null,null,null,{"$f":"IF(MindGrerr,Ackerfläche>0,1)","v":1}]
[{"$f":"\"Vielfältige Fruchtfolge mit 5 Hauptfrüchten\"\n &IF(AND(MindGrerr,OR(C226=0,vHGetreide_mit_Silomais>66%)),CHAR(10)&\" (\"\n&IF(AND((HK10bis30+HKunter10)>0,(HK10bis30+HKunter10)<5),TEXT((HK10bis30+HKunter10),\"0\")&\" von 5), \",\"\")\n&IF(MAX(K112:K133)>30%,\"Anbauanteil bei mindestens einer Kultur über 30 %, \",\"\")\n&IF(AND(vHgroßkörnige_Leguminosen>0,vHgroßkörnige_Leguminosen<10%),TEXT((10%-vHgroßkörnige_Leguminosen)*AFanbau,\"0\")&\" ha zu wenig großkörnige Leguminosen, \",\"\")\n&IF(vHGetreide>66%,\" zuviel Getreide, \",IF(vHGetreide_mit_Silomais>66%,\"möglicherweise wird Silomais zum Getreide gerechnet und der Anteil zu hoch, \",\"\"))&\")\",\"\")","v":"Vielfältige Fruchtfolge mit 5 Hauptfrüchten"},60,{"$f":"AND(MindGrerr,COUNTIFS($J$112:$J$132,\"A\",$K$112:$K$132,\"<=30%\",$K$112:$K$132,\">=10%\")+HKunter10>=5,vHgroßkörnige_Leguminosen>=10%,vHGetreide<=66%,vHGemüse<=30%,ÖLB=0,MAX(K112:K133)<=30%)","v":false},null,{"$f":"AFanbau","v":0},{"$f":"IFERROR(IF(C226,IF(ISBLANK(D226),0,MIN(E226,D226)),0)*B226,0)","v":0},"EL-0103-04 a1",{"$f":"IF(MindGrerr,Ackerfläche>0,1)","v":1},{"$f":"AFanbau","v":0}]
["8. Extensive und naturschurschutzgerechte Dauergrünlandbewirtschaftung",null,null,0,null,null,null,1]
["Extensives Dauergrünland",220,null,null,{"$f":"Dauergrünlandfläche","v":0},{"$f":"IFERROR(IF(C228,IF(ISBLANK(D228),0,MIN(E228,D228)),0)*B228,0)","v":0},"EL-0105-01 a1",{"$f":"IF(MindGrerr,Dauergrünlandfläche>0,1)","v":1}]
["Salzgrasland und Küstenvogelbrutgebiete",360,null,null,{"$f":"Dauergrünlandfläche-D228","v":0},0,"EL-0105-01 a3",1]
["Extrem nasse Grünlandstandorte",470,null,null,{"$f":"E229-D229","v":0},0,"EL-0105-01 a4",1]
["Feucht- und Nassgrünland",360,null,null,{"$f":"E230-D230","v":0},0,"EL-0105-01 a5",1]
["Wiesenbrüterschutz",360,null,null,{"$f":"E231-D231","v":0},0,"EL-0105-01 a6",1]
["Magergrasland und Heiden",360,null,null,{"$f":"E232-D232","v":0},0,"EL-0105-01 a6",1]
["Renaturierungsgrünland",430,null,null,{"$f":"E233-D233","v":0},0,"EL-0105-01 a7",1]
["Insellage",80,null,null,{"$f":"Dauergrünlandfläche","v":0},0,"EL-0105-01 a8",1]
["Prädatorenzuschlag",50,null,null,{"$f":"Dauergrünlandfläche","v":0},0,"EL-0105-01 a9",1]
["9. Moorschonende Stauhaltung-/Paludikulturen",null,null,0,null,null,null,1]
["Wasserstände 30 cm unter Flur",150,null,null,{"$f":"Landwirtschaftlich_genutzte_Fläche","v":0},{"$f":"IFERROR(IF(C238,MIN(VALUE(D238),VALUE(E238)),0)*B238,0)","v":0},"EL-0101-03 1a2",{"$f":"IF(MindGrerr,Dauergrünlandfläche>0,1)","v":1}]
["Wasserstände 10 cm unter Flur",450,null,null,{"$f":"Landwirtschaftlich_genutzte_Fläche","v":0},0,"EL-0101-03 1a1",{"$f":"IF(MindGrerr,Dauergrünlandfläche>0,1)","v":1}]
["Paludikultur",450,null,null,{"$f":"Landwirtschaftlich_genutzte_Fläche","v":0},0,"EL-0101-03 1b",{"$f":"IF(MindGrerr,Dauergrünlandfläche>0,1)","v":1}]
["Tierschutz",null,null,0,null,0,null,0,{"$f":"IF(MindGrerr,Tierhaltung,1)","v":1}]
["Aussenklimaställen mit Auslauf und Weidehaltung pro GV",120,{"$f":"IF(Tierhaltung,1,0)","v":0},null,{"$f":"RGV_DGL*Dauergrünlandfläche","v":0},0,null,0,{"$f":"IF(MindGrerr,IF(ISBLANK(Tierhaltung),1,Tierhaltung),1)","v":1}]
["Natura-2000-Ausgleich ",null,null,0,null,0,null,0,{"$f":"IF(MindGrerr,Fläche_in_NATURA_2000_Gebiet,1)","v":1}]
["Natura-2000-Ausgleich für landwirtschaftliche Flächen",null,null,0,null,0,null,0,1]
["Erhaltung Grünlandlebensraumtyp in GGB (Grünland)",200,{"$f":"IF(Dauergrünlandfläche,1,0)","v":0},null,{"$f":"Natura_2000_Fläche","v":0},0,"EL-0301-01 c1",0,1]
["Erhalt Wiesenbrüterhabitate in VSG (Grünland)",200,{"$f":"IF(Dauergrünlandfläche,1,0)","v":0},null,{"$f":"Natura_2000_Fläche","v":0},0,"EL-0301-01 c2",0,1]
["Schutz Lebensraumtypen und Arten vor PSM und Nährstoffeintrag in GGB (Ackerland)",200,{"$f":"IF(Ackerfläche,1,0)","v":0},null,{"$f":"Natura_2000_Fläche","v":0},0,"EL-0301-01 c3",0,1]
["Erhalt nährstoffempfindlicher Lebensraumtypen und Arten in GGB (Acker- und Grünland)",200,{"$f":"IF(AND(Ackerfläche,1,Dauergrünlandfläche),1,0)","v":1},null,{"$f":"Natura_2000_Fläche","v":0},0,"EL-0301-01 c4",0,1]
["Erhalt Nahrungshabitate für Vögel in VSG und Fledermäuse in GGB (Ackerland)",90,{"$f":"IF(Ackerfläche,1,0)","v":0},null,{"$f":"Natura_2000_Fläche","v":0},0,"EL-0301-01 c5",0,1]
["Natura-2000-Ausgleich auf forstwirtschaftlichen Flächen",null,null,0,0,0,null,0,{"$f":"IF(MindGrerr,AND(Fläche_in_NATURA_2000_Gebiet,Forstfläche>0),1)","v":1}]
["Lage in FFH",25,{"$f":"Forstfläche>0","v":false},null,{"$f":"Forstfläche","v":0},0,"EL-0301-02 a1",0,1]
["Habitatbäume, Befahrverbot, Anbauverbot untypischer Bäume, Totholz, FFH",113,false,null,0,0,"EL-0301-02 a2",0,1]
["Nadelholz<40%; Habitatbäume, Befahrverbot, Anbauverbot untypischer Bäume, Totholz, FFH",113,false,null,0,0,"EL-0301-02 b1",0,1]
["Nadelholz<40%; Habitatbäume, FFH",81,false,null,0,0,"EL-0301-02 b2",0,1]
["Nadelholz<40%; Habitatbäume, Befahrverbot, Anbauverbot untypischer Bäume, Totholz, FFH",181,false,null,0,0,"EL-0301-02 b3",0,1]
["Nadelholz<40%; Habitatbäume, FFH",149,false,null,0,0,"EL-0301-02 b4",0,1]
["Habitatbäume, Befahrverbot, Anbauverbot untypischer Bäume, Totholz, FFH",181,false,null,0,0,"EL-0301-02 b5",0,1]
["Habitatbäume, FFH",129,false,null,0,0,"EL-0301-02 b6",0,1]
["zeitweiliges Bewirtschaftungsverbot",19.899999999999999,false,null,0,0,"EL-0301-02 b7",0,1]
["Rückegasseabstand 40 m, Bestockungsgrad mind. 1,0",165,false,null,0,0,"EL-0301-02 c1",0,1]
["Rückegasseabstand 40 m, Bestockungsgrad mind. 1,0, FFH",190,false,null,0,0,"EL-0301-02 c2",0,1]
["Rückegasseabstand 40 m, Bestockungsgrad mind. 1,0, FFH, Totholz Befahrverbot, Habitatbäume, Anbauverbot untypischer Bäume",278,false,null,0,0,"EL-0301-02 c3",0,1]
["Rückegasseabstand 40 m, Bestockungsgrad mind. 1,0, FFH, Totholz Befahrverbot, Habitatbäume, Anbauverbot untypischer Bäume, Nadelhozanteil< 40%",278,false,null,0,0,"EL-0301-02 c4",0,1]
["Rückegasseabstand 40 m, Bestockungsgrad mind. 1,0, FFH, Habitatbäume, Nadelhozanteil< 40%",246,false,null,0,0,"EL-0301-02 c5",0,1]
["Rückegasseabstand 40 m, Bestockungsgrad mind. 1,0, FFH, Totholz Befahrverbot, Habitatbäume, Anbauverbot untypischer Bäume, Nadelhozanteil< 40%",346,false,null,0,0,"EL-0301-02 c6",0,1]
["Rückegasseabstand 40 m, Bestockungsgrad mind. 1,0, FFH,Habitatbäume, Nadelhozanteil< 40%",314,false,null,0,0,"EL-0301-02 c7",0,1]
["Rückegasseabstand 40 m, Bestockungsgrad mind. 1,0, FFH,Habitatbäume, Befahrverbot, Anabuverbot untypischer Bäume, Totholz",346,false,null,0,0,"EL-0301-02 c8",0,1]
["Rückegasseabstand 40 m, Bestockungsgrad mind. 1,0, FFH,Habitatbäume",294,false,null,0,0,"EL-0301-02 c9",0,1]
["Abzüge bei Maßnahmenüberschneidung","Minderungs-betrag","zutreffend?","Umfang","maximaler Umfang","Betrag",null,{"$f":"MAX(H271:H274,H281:H288,H289,H291:H297)","v":1}]
["Ökoregelungen ",null,null,null,null,null,null,{"$f":"MAX(H271:H274)","v":0}]
["ÖR 4 Extensivierung DGL im ökologischen Landbau",50,{"$f":"AND(ÖLB,F172>0)","v":false},{"$f":"IF(C271,Dauergrünlandfläche,0)","v":0},{"$f":"IF(ÖLB,Dauergrünlandfläche,0)","v":0},{"$f":"B271*D271","v":0},null,{"$f":"ÖLB","v":0}]
["ÖR 6 PSM-Verzicht Sommerungen im ökologischen Landbau",30,{"$f":"AND(ÖLB,F175>0)","v":false},{"$f":"IF(C272,D175,0)","v":0},{"$f":"IF(ÖLB,D175,0)","v":0},{"$f":"B272*D272","v":0},null,{"$f":"ÖLB","v":0}]
["ÖR 6 PSM-Verzicht Ackerfutter im ökologischen Landbau",30,{"$f":"AND(ÖLB,F176>0)","v":false},{"$f":"IF(C273,D176,0)","v":0},{"$f":"IF(ÖLB,D176,0)","v":0},{"$f":"B273*D273","v":0},null,{"$f":"ÖLB","v":0}]
["ÖR 6 PSM-Verzicht auf Erosionsschutz-Flächen",30,{"$f":"AND(SUM(F175:F176)>0,SUM(D193:D194)>0)","v":false},null,{"$f":"MIN(D193:D194,SUM(D175:D176))","v":0},{"$f":"B274*D274","v":0},null,{"$f":"ÖLB","v":0}]
["AUKM",null,null,null,null,null,null,{"$f":"MAX(H281:H289)","v":1}]
["Ökologischer Landbau in Wasserschutzgebiet",null,null,null,null,null,null,{"$f":"ÖLB","v":0}]
["Ökologischer Landbau in Kernzone eines Nationalparks",null,null,null,null,null,null,{"$f":"ÖLB","v":0}]
["Getreide mit doppeltem Reihenabstand im ÖLB",150,{"$f":"IF(ISBLANK(C198),0,AND(ÖLB,C198))","v":0},{"$f":"IF(ISBLANK(C198),0,D198)","v":0},null,{"$f":"B278*D278","v":0}]
[]
[null,null,null,null,null,null,null,{"$f":"ÖLB","v":0}]
["Hohe Wasserstände -10 cm auf ökologischen DGL",30,{"$f":"AND(ÖLB,D239>0)","v":false},{"$f":"IF(C281,D239,0)","v":0},{"$f":"IF(ÖLB,D239,0)","v":0},{"$f":"B281*D281","v":0},null,{"$f":"ÖLB","v":0}]
["Hohe Wasserstände -30 cm auf ökologischen DGL",30,{"$f":"AND(ÖLB,D238>0)","v":false},{"$f":"IF(C282,D238,0)","v":0},{"$f":"IF(ÖLB,D238,0)","v":0},{"$f":"B282*D282","v":0},null,0]
["Moorschonende Stauhaltung mit extensive Bewirtschaftung",30,{"$f":"AND(C228=1,OR(C238=1,C239=1))","v":false},null,{"$f":"MIN(D228,SUM(D238:D239))","v":0},{"$f":"IFERROR(IF(C283,MIN(VALUE(D283),VALUE(E283)),0)*B283,0)","v":0},null,1]
["biol. u. biot. PS, Pheromoneinsatz, Obst im Ökolandbau",0,{"$f":"AND(ÖLB,SUM(D202:D214)>0)","v":false},null,null,{"$f":"B284*D284","v":0},null,0]
["biol. Präparate und Virusverfahren im Ökolandbau",0,{"$f":"AND(ÖLB,SUM(C202:C222)>0)","v":false},null,null,0,null,0]
["Fettsäuren-Kaliumsalze  Obst/Gemüse im Ökolandbau",0,{"$f":"AND(ÖLB,SUM(C209:C211)>0)","v":false},null,null,0,null,0]
["Gemüse einschließlich Spargel - Herbizidverzicht im Ökolandbau",0,{"$f":"AND(ÖLB,(D208+D218)>0)","v":false},null,null,0,null,0]
["Förderung Biodiversität Obst/Gemüse im Ökolandbau",0,{"$f":"AND(ÖLB,(D215+D222)>0)","v":false},null,null,0,null,0]
["Naturschutzgerechte GL-Bewirtschaftung",45,{"$f":"AND(ÖLB,SUM(D228:D234)>0)","v":false},{"$f":"IF(C289,SUM(D228:D234),0)","v":0},null,0,null,{"$f":"AND(ÖLB,SUM(D228:D234)>0)","v":false}]
["Natura-2000-Ausgleich für landwirtschaftliche Flächen",null,null,null,null,null,null,{"$f":"Natura2000","v":0}]
["Erhalt GL-Lebensraumtypenim Ökolandbau",30,{"$f":"AND(ÖLB,F245>0)","v":false},{"$f":"IF(C291,D245,0)","v":0},{"$f":"IF(ÖLB,D245,0)","v":0},{"$f":"B291*D291","v":0},null,0]
["Erhalt Wiesenbrüterhabitate im Ökolandbau",30,{"$f":"AND(ÖLB,F246>0)","v":false},{"$f":"IF(C292,D246,0)","v":0},{"$f":"IF(ÖLB,D246,0)","v":0},{"$f":"B292*D292","v":0},null,0]
["Schutz vor PSM und Nährstoffeintrag im Ökolandbau",30,{"$f":"AND(ÖLB,F247>0)","v":false},{"$f":"IF(C293,D247,0)","v":0},{"$f":"IF(ÖLB,D247,0)","v":0},{"$f":"B293*D293","v":0},null,0]
["Schutz nährstoffempfindlicher Lebensraumtypen im Ökolandbau",30,{"$f":"AND(ÖLB,F248>0)","v":false},{"$f":"IF(C294,D248,0)","v":0},{"$f":"IF(ÖLB,D248,0)","v":0},{"$f":"B294*D294","v":0},null,0]
["Erhalt Nahrungshabitate für Vögel im Ökolandbau",30,{"$f":"AND(ÖLB,F249>0)","v":false},{"$f":"IF(C295,D249,0)","v":0},{"$f":"IF(ÖLB,D249,0)","v":0},{"$f":"B295*D295","v":0},null,0]
["AUKM in Wasserschutzgebiet II, NSG I",null,null,0]
["AUKM in Wasserschutzgebiet III, NSG II",null,null,0]
[null,null,null,0]
[null,null,null,0]
[null,null,null,0]
[null,null,null,0]
[null,null,null,0]
[null,null,null,0]
[null,null,null,0]
[null,null,null,0]
[null,null,null,0]
[null,null,null,0]
[null,null,null,0]
[null,null,null,0]
[null,null,null,0]
[null,null,null,0]
[null,null,null,0]
[null,null,null,0]
[null,null,null,0]
[null,null,null,0]
[null,null,null,0]
[null,null,null,0]
[null,null,null,0]
[null,null,null,0]
[null,null,null,0]
[null,null,null,0]
[null,null,null,0]
[null,null,null,0]
[null,null,null,0]
[null,null,null,0]
[null,null,null,0]
[null,null,null,0]
[null,null,null,0]
[null,null,null,0]
[null,null,null,0]
[null,null,null,0]
[null,null,null,0]
[null,null,null,0]
[null,null,null,0]
[null,null,null,0]
[null,null,null,0]
[null,null,null,0]
[null,null,null,0]
[null,null,null,0]
[null,null,null,0]
[null,null,null,0]
[null,null,null,0]
[null,null,null,0]
[null,null,null,0]
[null,null,null,0]
[null,null,null,0]
[null,null,null,0]
[null,null,null,0]
[null,null,null,0]
[null,null,null,0]
[null,null,null,0]
[null,null,null,0]
[null,null,null,0]
[null,null,null,0]
[null,null,null,0]
[null,null,null,0]
[null,null,null,0]
[null,null,null,0]
[null,null,null,0]
[null,null,null,0]
[null,null,null,0]
[null,null,null,0]
[null,null,null,0]
[null,null,null,0]
[null,null,null,0]
[null,null,null,0]
[null,null,null,0]
[null,null,null,0]
[null,null,null,0]
[null,null,null,0]
[null,null,null,0]
[null,null,null,0]
[null,null,null,0]
[null,null,null,0]
[null,null,null,0]
[null,null,null,0]
[null,null,null,0]
[null,null,null,0]
[null,null,null,0]
[null,null,null,0]
[null,null,null,0]
[null,null,null,0]
[null,null,null,0]
[null,null,null,0]
[null,null,null,0]
[null,null,null,0]
[null,null,null,0]
[null,null,null,0]
[null,null,null,0]
[null,null,null,0]
[null,null,null,0]
[null,null,null,0]
[null,null,null,0]
[null,null,null,0]
[null,null,null,0]
[null,null,null,0]
[null,null,null,0]
[null,null,null,0]
[null,null,null,0]
["Legende (Erläuterung der verwendeten Farben):",null,null,0,null,null,null,1]
[null,null,null,0,null,null,null,1]
["Hintergrundfarbe grün","unproduktive Ackerfläche im Anbauplan, die für verschiedene Programme zur Verfügung steht",null,null,null,null,null,1]
[null,null,null,null,null,null,null,1]
["Rahmen lila","Fläche liegt innerhalb einer Gebietskulisse, hier ist die Kenntnis des Bearbeiters gefordert",null,null,null,null,null,1]
[null,null,null,0,null,null,null,1]
[null,"Eingabezelle (Dateneingabe des Bearbeiters möglich, notwendig)",null,null,null,null,null,1]
[null,null,null,0,null,null,null,1]
[null,null,null,0]
[null,null,null,0]
[null,null,null,0]

{"sheet":"Änderungen","index":2,"n_rows":31,"n_cols":6,"rows_kept":31,"cut":false,"hidden":false,"merged":[]}
["Datum","Maßnahme","Anlass","Text"]
[]
[]
[]
["2024-03-21","3. Änderung GAPDZVO, GLÖZ 8","Abstimmung Bundesrat","geringen Inanspruchnahme der Öko-Regelungen"]
["2023-07-28","ÖR 1: Brache","BMEL PM 26.07.2023","Mindestgröße auf 1ha gesenkt","EUKomm muss noch zustimmen"]
["2023-07-28","ÖR 3: Agroforst","BMEL PM 26.07.2023","Prämie ab 2024 200 €","EUKomm muss noch zustimmen"]
["2023-07-28","ÖR 6: Verzicht PSM","BMEL PM 26.07.2023","Prämie ab 2024 150 €","EUKomm muss noch zustimmen"]
["2023-07-28","ÖR Vielfältige Kulturen","BMEL PM 26.07.2023","Prämie ab 2024 60 €","EUKomm muss noch zustimmen"]
["2022-11-10","ÖR Vielfältige Kulturen","Hinweis von Nutzer","Anbauanteile über 30 % schließen von Teilnahme aus"]
["2022-11-10","AUKM Vielfältige Kulturen","Hinweis von Nutzer","Anbauanteile über 30 % schließen von Teilnahme aus"]
["2022-11-10","Blühflächen im Obstbau","Richtlinie geändert","114 statt 115 €/ha"]
["2022-11-10","Blüh- oder Begrünungsfläche im Gemüsebau","Richtlinie geändert","69 statt 71 €/ha"]
["2022-11-09","AUKM Moorschonende Stauhaltung","Richtlinie geändert","Prämie von 100 auf 150 €/ha geändert"]
["2022-11-09","Weidetierprämie","Hinweis von Nutzer","keine Mutterkuhprämie für Milchviehhalter"]
["2022-08-01","AUKM Vielfältige Kulturen","Richtlinie geändert","Prämie von 65 auf 60 €/ha geändert"]
["2022-08-01","AUKM Striptill","Richtlinie geändert","Prämie von 60 auf 65 €/ha geändert"]
["2022-07-29","ÖR Vielfältige Kulturen",null,"Prämie von 30 auf 45 €/ha geändert"]
["2022-07-27","Programm","Bedienerfreundlichkeit","Dialogfeld, falls Fläche für Maßnahmen eingegeben werden, aber das Feld 'Voraussetzung erfüllt' noch nicht 'ja' ist"]
["2022-07-26","AUKM Ökologischer Landbau","Richtlinie geändert","Fördersatz für Ackerland von 244 auf 284 €/ha geändert"]
["2022-07-25","ÖR Vielfältige Kulturen","Hinweis von Nutzer","Anbauanteile beziehen sich auf die Anbaufläche (vorher Ackerfläche)"]
["2022-07-25","AUKM Vielfältige Kulturen","Hinweis von Nutzer","Anbauanteile beziehen sich auf die Anbaufläche (vorher Ackerfläche)"]
["2022-07-25","ÖR Vielfältige Kulturen","Hinweis von Nutzer","Kulturen mit weniger als 10 % Anbauanteil werden zusammengefasst \n(vorher nicht berücksichtigt)"]
["2022-07-25","AUKM Vielfältige Kulturen","Hinweis von Nutzer","Kulturen mit weniger als 10 % Anbauanteil werden zusammengefasst \n(vorher nicht berücksichtigt)"]
["2022-12-07","AUKM Erosionsschutz","Richtlinie geändert","6.3 Strip-Till/Direktsaatverfahren"]
["2022-12-07","Abzugsbetrag Extensivierung DGL im ökologischen Landbau","Richtlinie geändert","50 statt 30 €"]
["2022-12-15","Hinweis, dass Silomais möglicherweise zu Getreide zählt","Richtlinie geändert",null,"Silomais/Grünmais",20]
[null,null,null,null,"Winterweizen",20]
[null,null,null,null,"Süßlupinen",10]
[null,null,null,null,"Winterraps",20]
[null,null,null,null,"Wintergerste",20]